bitfinex/quotes_SOLUSD_20250317
["timestamp","ask_amount","ask_price","bid_price","bid_amount"]
[1742247639684,0.03,128.88,128.84,0.063]
[1742247639865,6.81,128.88,128.84,0.063]
[1742247640565,19.60138337,128.88,128.84,0.063]
[1742247641384,0.03,128.88,128.84,0.063]
[1742247641583,6.81,128.88,128.85,6.1078]
[1742247641787,6.81,128.88,128.86,1.5266]
[1742247643100,6.81,128.88,128.87,7.7597]
[1742247643402,0.03,128.88,128.87,7.7597]
[1742247644594,0.03,128.88,128.87,20.55108337]
[1742247644785,0.03,128.88,128.87,7.7597]
[1742247646195,0.03,128.88,128.87,14.1227]
[1742247646393,0.0001,128.88,128.87,26.91408337]
[1742247649381,0.0001,128.88,128.87,45.84805537]
[1742247649581,39.55138337,128.94,128.88,1.6622]
[1742247649790,26.76,128.94,128.88,1.6622]
[1742247650104,26.76,128.94,128.89,12.79138337]
[1742247651596,26.76,128.94,128.9,27.1527]
[1742247651776,12.79138337,128.96,128.91,6.1706]
[1742247652096,0.03,128.94,128.91,6.1706]
[1742247652804,0.03,128.94,128.91,18.96198337]
[1742247653185,0.03,128.94,128.92,12.79138337]
[1742247653385,0.03,128.94,128.93,1.6487]
[1742247653576,0.03,128.94,128.93,9.4048]
[1742247660406,0.03,128.94,128.93,7.7561]
[1742247662313,0.03,128.94,128.91,6.1706]
[1742247662314,0.03,128.94,128.92,7.7567]
[1742247662910,0.03,128.94,128.91,7.7571]
[1742247663089,6.79,128.94,128.91,7.7571]
[1742247663290,19.58138337,128.94,128.91,7.7571]
[1742247663707,19.58138337,128.94,128.89,7.7585]
[1742247667299,6.79,128.94,128.89,20.54988337]
[1742247667597,19.58138337,128.94,128.89,7.7585]
[1742247670913,19.58138337,128.94,128.89,27.1548]
[1742247671688,6.79,128.94,128.89,39.94618337]
[1742247672912,0.03,128.94,128.9,12.79138337]
[1742247673218,0.03,128.98,128.94,0.28432314]
[1742247673395,0.03,128.98,128.94,151.17570651]
[1742247674616,0.03,128.98,128.95,27.1422]
[1742247675740,0.03,128.98,128.95,27.1422]
[1742247676097,0.03,128.98,128.95,165.2422]
[1742247676796,0.03,128.98,128.95,179.59748337]
[1742247677095,0.03,129.0,128.97,12.79138337]
[1742247677300,0.03,129.0,128.99,12.79138337]
[1742247677301,0.0001,129.0,128.99,12.79138337]
[1742247677528,0.0001,129.0,128.99,38.11265537]
[1742247678200,0.0001,129.0,128.99,45.86515537]
[1742247678797,0.0001,129.0,128.99,33.073772]
[1742247679008,0.0001,129.0,128.99,45.86515537]
[1742247679739,0.0001,129.0,128.99,7.7525]
[1742247680432,0.0001,129.0,128.98,7.7528]
[1742247680595,19.55148337,129.0,128.95,7.7546]
[1742247681197,12.79138337,128.97,128.92,145.8564]
[1742247681418,6.90226157,129.0,128.9,157.27868337]
[1742247681419,19.55138337,128.96,128.9,157.27868337]
[1742247682342,19.55138337,128.96,128.91,7.7571]
[1742247682704,19.55138337,128.96,128.9,165.03638337]
[1742247683003,12.79138337,128.94,128.89,7.7582]
[1742247683203,12.79138337,128.93,128.89,7.7582]
[1742247683420,6.76,128.93,128.89,7.7582]
[1742247685024,19.55138337,128.93,128.88,145.9219]
[1742247686499,19.55138337,128.93,128.88,7.8219]
[1742247687521,12.79138337,128.92,128.88,0.063]
[1742247687728,12.79138337,128.92,128.88,7.8219]
[1742247688727,12.79138337,128.92,128.88,0.063]
[1742247689108,12.79138337,128.9,128.88,0.063]
[1742247689312,6.76,128.89,128.88,0.063]
[1742247695631,12.79138337,128.92,128.88,0.063]
[1742247695632,6.76,128.92,128.88,0.063]
[1742247696630,6.76,128.92,128.88,7.8221]
[1742247697214,12.79138337,128.93,128.88,7.8221]
[1742247697429,6.76,128.92,128.88,7.8221]
[1742247697933,6.76,128.92,128.88,20.61348337]
[1742247698149,21.18578337,128.96,128.9,12.79138337]
[1742247698336,19.55138337,128.96,128.9,12.79138337]
[1742247698530,19.55138337,128.96,128.91,27.1506]
[1742247698968,19.55138337,128.96,128.91,39.94198337]
[1742247699325,6.76,128.96,128.91,39.94198337]
[1742247699647,19.55138337,128.96,128.91,39.94198337]
[1742247700142,19.55138337,128.96,128.91,19.3933]
[1742247700626,12.79138337,128.96,128.91,19.3933]
[1742247700818,18.64974886,129.0,128.94,12.79138337]
[1742247700819,6.7601,129.0,128.94,12.79138337]
[1742247701019,0.0001,129.0,128.95,31.72535537]
[1742247702620,0.0001,129.0,128.96,27.1401]
[1742247704047,0.0001,129.0,128.96,165.2401]
[1742247706838,12.79148337,129.0,128.96,145.8543]
[1742247707032,0.0001,129.0,128.96,145.8543]
[1742247709857,0.0001,129.0,128.96,7.7543]
[1742247711233,0.0001,129.0,128.96,7.8173]
[1742247711752,12.79148337,129.0,128.96,0.063]
[1742247712659,0.0001,129.0,128.96,0.063]
[1742247714561,12.79148337,129.0,128.96,0.063]
[1742247714864,0.0001,129.0,128.96,0.063]
[1742247715063,12.79148337,129.0,128.96,0.063]
[1742247715762,0.0001,129.0,128.96,0.063]
[1742247725563,0.0001,129.0,128.98,14.38118337]
[1742247725864,0.0001,129.0,128.99,12.79138337]
[1742247726468,0.0001,129.0,128.99,177.57785537]
[1742247730144,0.0001,129.0,128.99,184.12207851]
[1742247733360,0.0001,129.01,129.0,0.28432314]
[1742247733666,0.0001,129.01,129.0,20.82760651]
[1742247735869,0.0001,129.01,129.0,39.76157851]
[1742247736674,0.0001,129.01,129.0,41.31115676]
[1742247739254,0.0001,129.01,129.0,179.41115676]
[1742247739474,0.0001,129.01,129.0,177.86157851]
[1742247741467,0.0001,129.01,129.0,165.07019514]
[1742247741668,0.0001,129.01,129.0,177.86157851]
[1742247742961,0.0001,129.01,129.0,165.07019514]
[1742247743163,0.0001,129.01,129.0,177.86157851]
[1742247744581,0.0001,129.01,129.0,165.07019514]
[1742247745370,0.0001,129.01,129.0,177.86157851]
[1742247746967,0.0001,129.01,129.0,177.92457851]
[1742247756384,0.0001,129.01,129.0,177.64025537]
[1742247756967,0.0001,129.01,129.0,164.848872]
[1742247757372,0.0001,129.01,129.0,177.64025537]
[1742247760697,0.0001,129.01,129.0,158.70628337]
[1742247760897,0.0001,129.01,129.0,177.64025537]
[1742247762294,0.0001,129.01,129.0,177.92457851]
[1742247762996,0.0001,129.03,129.01,18.933972]
[1742247763198,0.0001,129.03,129.02,12.79138337]
[1742247763995,0.0001,129.03,129.02,20.54208337]
[1742247766079,8.3887,129.03,129.01,7.7511]
[1742247766292,8.3887,129.03,129.0,0.063]
[1742247766511,20.0,129.01,129.0,0.063]
[1742247767279,39.14888337,129.01,129.0,0.063]
[1742247767481,39.43320651,129.01,129.0,0.063]
[1742247767678,59.91267851,129.01,129.0,0.063]
[1742247767983,0.28432314,129.0,128.96,0.063]
[1742247768193,13.07570651,128.98,128.96,0.063]
[1742247768791,19.55138337,128.99,128.96,0.063]
[1742247769806,18.55138337,128.99,128.96,0.063]
[1742247770700,14.45768337,128.97,128.96,0.063]
[1742247772001,1.6663,128.97,128.96,0.063]
[1742247783930,22.21138337,128.97,128.96,0.063]
[1742247784093,22.49570651,128.97,128.96,0.063]
[1742247786308,41.42967851,128.97,128.96,0.063]
[1742247787514,14.74200651,128.97,128.96,0.063]
[1742247792330,15.02632965,128.97,128.96,0.063]
[1742247794209,41.42967851,128.97,128.96,0.063]
[1742247806725,33.67597851,128.97,128.96,0.063]
[1742247809533,41.42967851,128.97,128.96,0.063]
[1742247811032,33.67597851,128.97,128.96,0.063]
[1742247817039,32.00967851,128.97,128.96,0.063]
[1742247821330,20.28432314,128.97,128.96,0.063]
[1742247821647,19.55138337,128.97,128.96,0.063]
[1742247822449,6.76,128.97,128.96,0.063]
[1742247822635,12.96354494,128.99,128.96,0.063]
[1742247822947,6.76,128.98,128.96,0.063]
[1742247824445,12.82138337,128.99,128.96,0.063]
[1742247824632,6.76,128.98,128.96,0.063]
[1742247833656,0.03,128.99,128.97,8.0949]
[1742247833868,0.03,128.99,128.98,20.54448337]
[1742247834036,0.0001,129.01,129.0,40.10457851]
[1742247834362,0.0001,129.01,129.0,178.20457851]
[1742247834759,0.0001,129.01,128.97,7.7534]
[1742247834960,12.79138337,129.0,128.96,0.063]
[1742247835164,19.55138337,128.99,128.96,0.063]
[1742247835330,12.79138337,128.98,128.96,0.063]
[1742247835852,27.30388337,128.99,128.96,0.063]
[1742247836164,12.79148337,129.01,128.96,0.063]
[1742247836332,6.76,129.0,128.96,0.063]
[1742247837435,19.55138337,129.0,128.96,0.063]
[1742247838960,6.76,129.0,128.96,0.063]
[1742247839164,19.55138337,129.0,128.96,0.063]
[1742247839971,12.79138337,128.99,128.96,0.063]
[1742247840459,19.55138337,129.0,128.96,0.063]
[1742247840648,6.76,129.0,128.96,0.063]
[1742247840851,12.79148337,129.01,128.96,0.063]
[1742247840852,0.0001,129.01,128.96,0.063]
[1742247841161,20.0,129.0,128.96,0.063]
[1742247842033,20.0,129.0,128.96,7.8173]
[1742247842235,6.7601,129.01,128.96,39.99448337]
[1742247842655,6.7601,129.01,128.96,27.2031]
[1742247842856,0.03,129.0,128.96,27.2031]
[1742247844258,0.03,129.0,128.96,7.8173]
[1742247844641,13.36002965,128.98,128.96,0.063]
[1742247844849,38.76967851,128.97,128.96,0.063]
[1742247845858,25.97829514,128.97,128.96,0.063]
[1742247846158,19.83570651,128.97,128.96,0.063]
[1742247846740,7.04432314,128.97,128.96,0.063]
[1742247848462,19.83570651,128.97,128.96,0.063]
[1742247850359,0.28432314,128.97,128.96,0.063]
[1742247850567,27.04432314,128.97,128.96,0.063]
[1742247850767,39.83570651,128.97,128.96,0.063]
[1742247851146,27.04432314,128.97,128.96,0.063]
[1742247856175,26.90216157,128.97,128.96,0.063]
[1742247856669,27.04432314,128.97,128.96,0.063]
[1742247860875,7.04432314,128.97,128.96,0.063]
[1742247861252,19.83570651,128.97,128.96,0.063]
[1742247862954,26.76,128.97,128.96,0.063]
[1742247865254,47.58940651,128.97,128.96,0.063]
[1742247865954,47.44724494,128.97,128.96,0.063]
[1742247866373,66.52337851,128.97,128.96,0.063]
[1742247870581,58.76967851,128.97,128.96,0.063]
[1742247872480,39.83570651,128.97,128.96,0.063]
[1742247873387,39.55138337,128.97,128.96,0.063]
[1742247873701,26.76,128.97,128.96,0.063]
[1742247874273,20.0,128.97,128.96,0.063]
[1742247874590,26.76,128.97,128.96,0.063]
[1742247875086,12.93354494,128.99,128.96,0.063]
[1742247875389,6.76,128.98,128.96,0.063]
[1742247882105,19.55138337,128.98,128.96,0.063]
[1742247883111,21.11372965,128.97,128.96,0.063]
[1742247883317,39.76337851,128.97,128.96,0.063]
[1742247884305,13.07570651,128.97,128.96,0.063]
[1742247884507,39.76337851,128.97,128.96,0.063]
[1742247888406,6.76,128.98,128.96,0.063]
[1742247890685,0.03,129.0,128.96,6.4136]
[1742247890885,0.03,129.0,128.96,19.20498337]
[1742247892508,0.03,129.0,128.96,14.1674]
[1742247896119,0.03,129.0,128.96,6.4136]
[1742247897619,0.03,129.0,128.96,14.1679]
[1742247898613,12.82138337,129.0,128.96,6.4136]
[1742247899916,20.57328337,129.0,128.96,6.4136]
[1742247900208,20.57328337,129.0,128.96,0.063]
[1742247900209,12.79138337,128.98,128.96,0.063]
[1742247900394,38.48535537,128.97,128.96,0.063]
[1742247900594,19.83570651,128.97,128.96,0.063]
[1742247900990,38.76967851,128.97,128.96,0.063]
[1742247902117,46.52337851,128.97,128.96,0.063]
[1742247907718,6.76,128.97,128.96,0.063]
[1742247908020,0.03,129.0,128.96,0.063]
[1742247910698,0.03,129.0,128.96,12.85438337]
[1742247911103,0.03,129.0,128.96,0.063]
[1742247911508,0.03,129.0,128.98,12.79138337]
[1742247911718,0.03,129.0,128.99,7.7525]
[1742247911906,0.03,129.0,128.99,22.10678337]
[1742247912207,0.03,129.0,128.99,9.3154]
[1742247919935,0.0001,129.01,128.99,41.32507851]
[1742247920107,0.0001,129.01,129.0,31.72535537]
[1742247920620,0.0001,129.01,129.0,39.47725537]
[1742247921012,0.0001,129.01,129.0,177.57725537]
[1742247921221,0.0001,129.01,129.0,158.64328337]
[1742247929020,0.0001,129.01,129.0,145.8519]
[1742247931115,0.0001,129.01,129.0,158.64328337]
[1742247931713,0.0001,129.01,129.0,145.8519]
[1742247932741,0.0001,129.01,129.0,7.7519]
[1742247933235,0.0001,129.01,128.98,12.79138337]
[1742247933236,0.0001,129.01,128.99,7.7525]
[1742247933743,6.7401,129.01,128.99,7.7525]
[1742247935740,6.7401,129.01,128.98,7.7531]
[1742247937142,6.7401,129.01,128.98,27.1359]
[1742247941725,6.7401,129.01,128.98,39.92728337]
[1742247945141,6.7401,129.01,128.98,27.1359]
[1742247946349,6.7401,129.01,128.98,12.79138337]
[1742247947339,6.7401,129.01,128.97,12.85438337]
[1742247948440,6.7401,129.01,128.98,7.7531]
[1742247949550,6.7401,129.01,128.98,27.1359]
[1742247957165,6.7401,129.01,128.98,39.92728337]
[1742247957346,0.0001,129.01,128.99,12.79138337]
[1742247957552,0.0001,129.01,129.0,12.79138337]
[1742247958349,0.0001,129.01,128.99,19.33748337]
[1742247958647,0.0001,129.01,128.99,12.79138337]
[1742247959260,0.0001,129.01,129.0,7.7519]
[1742247961265,0.0001,129.01,128.99,7.7525]
[1742247961965,0.0001,129.01,128.99,20.54388337]
[1742247963771,0.0001,129.01,129.0,12.79138337]
[1742247965569,0.0001,129.01,129.0,20.54328337]
[1742247968474,0.0001,129.01,129.0,39.47725537]
[1742247970275,0.0001,129.01,129.0,187.24572295]
[1742247970577,0.0001,129.01,129.0,504.43597851]
[1742247971867,0.0001,129.01,129.0,508.37966782]
[1742247973672,0.0001,129.01,129.0,196.37966782]
[1742247974465,0.0001,129.01,129.0,196.87966782]
[1742247974861,0.0001,129.01,129.0,248.0452013]
[1742247975052,0.0001,129.01,129.0,247.5452013]
[1742247975251,0.0001,129.03,129.02,0.28432314]
[1742247975465,0.0001,129.03,129.02,151.17570651]
[1742247975660,0.0001,129.03,129.02,138.38432314]
[1742247976061,0.0001,129.03,129.02,151.17570651]
[1742247976264,0.0001,129.03,129.02,158.92640651]
[1742247976691,0.0001,129.03,129.02,470.92640651]
[1742247978878,0.0001,129.03,129.02,158.92640651]
[1742247982674,0.1,129.09,129.05,38.933972]
[1742247982980,0.1,129.09,129.08,20.53848337]
[1742247983667,0.03,129.1,129.08,20.53848337]
[1742247983864,0.03,129.1,129.09,12.79138337]
[1742247984992,0.03,129.1,129.09,20.53788337]
[1742247985190,0.0001,129.1,129.09,20.53788337]
[1742247988272,0.0001,129.1,129.09,177.57185537]
[1742247988988,0.03,129.14,129.1,18.933972]
[1742247989190,0.03,129.14,129.12,12.79138337]
[1742247989383,20.64928337,129.18,129.12,12.79138337]
[1742247990294,7.8579,129.18,129.14,27.1023]
[1742247990994,1.547,129.18,129.14,27.1023]
[1742247991195,1.547,129.18,129.14,39.89368337]
[1742247991974,1.547,129.18,129.15,12.79138337]
[1742247992177,25.55478337,129.21,129.15,12.79138337]
[1742247992692,12.7634,129.21,129.16,7.7423]
[1742247992874,18.81478337,129.21,129.16,27.0981]
[1742247997503,6.0234,129.21,129.16,39.88948337]
[1742247998904,14.29808337,129.22,129.16,39.88948337]
[1742247999796,0.03,129.21,129.16,39.88948337]
[1742248000802,12.79138337,129.19,129.16,7.7423]
[1742248001098,12.79138337,129.2,129.16,7.7423]
[1742248001304,0.03,129.21,129.16,7.7423]
[1742248001884,0.03,129.21,129.16,39.88948337]
[1742248002389,0.03,129.21,129.16,165.1981]
[1742248004609,12.82138337,129.21,129.16,165.1981]
[1742248007518,0.03,129.21,129.16,177.98948337]
[1742248010313,0.03,129.21,129.16,165.1981]
[1742248010314,12.82138337,129.21,129.16,165.1981]
[1742248010694,0.03,129.21,129.16,177.98948337]
[1742248014603,0.03,129.21,129.17,12.79138337]
[1742248015105,0.03,129.21,129.18,7.7411]
[1742248019142,0.03,129.21,129.17,27.096]
[1742248019844,0.03,129.21,129.17,39.88738337]
[1742248020233,6.5609,129.28,129.19,12.79138337]
[1742248020432,6.5909,129.31,129.23,12.79138337]
[1742248020636,12.79138337,129.3,129.24,31.72535537]
[1742248020845,12.82138337,129.31,129.25,12.79138337]
[1742248021141,12.79138337,129.3,129.24,31.72535537]
[1742248021349,12.82138337,129.31,129.26,12.79138337]
[1742248021544,0.03,129.31,129.26,150.89138337]
[1742248022121,0.03,129.31,129.3,51.72535537]
[1742248022324,0.03,129.31,129.3,189.82535537]
[1742248022642,0.03,129.31,129.3,196.56535537]
[1742248023324,0.03,129.31,129.3,516.29925537]
[1742248023945,2.85809,129.34,129.33,20.0]
[1742248024270,2.85809,129.34,129.33,191.65540937]
[1742248024434,2.85809,129.34,129.33,190.10967851]
[1742248025256,12.89138337,129.43,129.35,19.21829514]
[1742248025417,0.1,129.43,129.38,12.79138337]
[1742248025635,0.1,129.43,129.39,12.79138337]
[1742248026342,12.79138337,129.41,129.35,142.97271]
[1742248026549,12.79138337,129.4,129.35,142.97271]
[1742248026750,12.79138337,129.4,129.35,135.24191]
[1742248027156,12.79138337,129.41,129.35,148.03329337]
[1742248027551,12.79138337,129.41,129.39,15.83224338]
[1742248027951,12.79138337,129.41,129.39,11.94550121]
[1742248028447,20.0,129.43,129.39,11.94550121]
[1742248028647,12.79138337,129.41,129.35,18.64964886]
[1742248029464,12.79138337,129.41,129.35,31.44103223]
[1742248029663,12.79138337,129.41,129.35,18.64964886]
[1742248029969,12.79138337,129.4,129.35,18.64964886]
[1742248031565,12.79138337,129.41,129.35,18.64964886]
[1742248033262,20.51878337,129.41,129.35,18.64964886]
[1742248034457,12.79138337,129.37,129.31,154.77329337]
[1742248034663,12.79138337,129.37,129.31,6.74]
[1742248034962,12.79138337,129.37,129.34,20.0]
[1742248035140,12.79138337,129.37,129.3,166.68294223]
[1742248035339,12.79138337,129.37,129.31,6.74]
[1742248035558,20.52128337,129.37,129.31,14.473]
[1742248036265,20.52128337,129.37,129.31,27.26438337]
[1742248036444,20.52128337,129.37,129.31,14.473]
[1742248036848,20.52128337,129.37,129.31,27.26438337]
[1742248037047,20.52128337,129.37,129.31,14.473]
[1742248037461,20.52128337,129.37,129.31,27.26438337]
[1742248038168,20.52128337,129.37,129.31,14.473]
[1742248038864,0.28432314,129.36,129.29,135.24191]
[1742248039064,12.79138337,129.32,129.26,12.79138337]
[1742248039364,12.79138337,129.31,129.25,7.7369]
[1742248040268,20.52498337,129.31,129.25,7.7369]
[1742248040763,12.79138337,129.31,129.25,7.7369]
[1742248041267,12.79138337,129.29,129.24,7.7372]
[1742248041661,12.79138337,129.3,129.24,7.7372]
[1742248042062,0.14216157,129.29,129.24,7.7372]
[1742248042250,12.79138337,129.3,129.24,7.7372]
[1742248042451,0.14216157,129.29,129.24,7.7372]
[1742248042759,12.79138337,129.28,129.23,7.7379]
[1742248042965,12.79138337,129.27,129.21,18.71264886]
[1742248043578,12.79138337,129.27,129.21,12.85438337]
[1742248043755,12.79138337,129.27,129.22,7.7384]
[1742248046465,12.79138337,129.27,129.21,7.8023]
[1742248046466,12.79138337,129.26,129.21,7.8023]
[1742248047279,19.85962097,129.26,129.21,7.8023]
[1742248047576,19.85962097,129.26,129.22,0.063]
[1742248049260,20.00178254,129.25,129.22,0.063]
[1742248049760,6.74,129.24,129.22,0.063]
[1742248059267,20.00178254,129.26,129.22,0.063]
[1742248059268,19.85962097,129.26,129.22,0.063]
[1742248059582,21.47352097,129.28,129.22,0.063]
[1742248059782,21.47352097,129.28,129.22,18.71264886]
[1742248059969,19.85962097,129.27,129.22,18.71264886]
[1742248060166,19.85962097,129.27,129.23,0.28432314]
[1742248060475,19.85962097,129.3,129.24,18.64964886]
[1742248060661,19.85962097,129.31,129.24,173.75117983]
[1742248060871,19.85962097,129.31,129.27,27.075]
[1742248061069,19.85962097,129.32,129.27,27.075]
[1742248061384,1.5634,129.35,129.28,18.64964886]
[1742248061586,19.85962097,129.36,129.3,19.07613357]
[1742248061888,6.5611,129.4,129.3,19.07613357]
[1742248061889,19.85962097,129.37,129.31,45.24926983]
[1742248062764,19.85962097,129.38,129.32,19.85962097]
[1742248062985,19.85962097,129.38,129.33,27.0624]
[1742248063485,19.85962097,129.4,129.34,38.79359297]
[1742248063981,0.03,129.41,129.35,26.61962097]
[1742248064186,0.03,129.41,129.37,18.64964886]
[1742248064960,0.03,129.41,129.38,7.7291]
[1742248065380,26.66962097,129.41,129.36,135.24191]
[1742248065578,26.66962097,129.41,129.35,7.7309]
[1742248065579,19.85962097,129.39,129.35,7.7309]
[1742248066826,19.85962097,129.4,129.35,7.7309]
[1742248067164,19.85962097,129.39,129.35,7.7309]
[1742248067364,19.85962097,129.4,129.35,7.7309]
[1742248069397,6.81,129.41,129.35,7.7309]
[1742248069690,26.66962097,129.41,129.35,7.7309]
[1742248069886,19.85962097,129.39,129.35,7.7309]
[1742248070096,19.85962097,129.39,129.33,7.7321]
[1742248070278,19.85962097,129.37,129.33,7.7321]
[1742248070889,39.85962097,129.38,129.33,7.7321]
[1742248071389,26.78178254,129.37,129.32,7.7327]
[1742248072796,6.92216157,129.37,129.32,7.7327]
[1742248072996,6.92216157,129.37,129.33,0.063]
[1742248073493,26.78178254,129.37,129.33,0.063]
[1742248077291,34.51168254,129.37,129.33,0.063]
[1742248077599,19.85962097,129.35,129.33,0.063]
[1742248078378,19.85962097,129.36,129.33,0.063]
[1742248078579,6.78,129.35,129.33,0.063]
[1742248080796,19.85962097,129.36,129.33,0.063]
[1742248080999,26.63962097,129.36,129.33,0.063]
[1742248082304,0.14216157,129.35,129.33,0.063]
[1742248082509,0.28432314,129.35,129.33,0.063]
[1742248082683,20.00178254,129.34,129.33,0.063]
[1742248083007,20.28610568,129.34,129.33,0.063]
[1742248083692,45.68091611,129.34,129.33,0.063]
[1742248083888,20.14216157,129.3,129.27,7.7353]
[1742248084102,6.8,129.29,129.27,7.7353]
[1742248084310,6.8,129.29,129.24,27.0809]
[1742248085008,19.85962097,129.32,129.26,19.85962097]
[1742248085211,6.8,129.33,129.28,19.85962097]
[1742248085715,6.8,129.33,129.27,19.85962097]
[1742248086399,6.8,129.33,129.28,27.0729]
[1742248086599,26.65962097,129.33,129.28,27.0729]
[1742248086799,6.8,129.33,129.28,27.0729]
[1742248087515,6.8,129.33,129.29,18.64964886]
[1742248087921,19.85962097,129.35,129.29,38.50926983]
[1742248088127,1.5021,129.38,129.31,38.50926983]
[1742248088421,19.85962097,129.4,129.33,19.85962097]
[1742248088620,19.85962097,129.4,129.34,38.50926983]
[1742248088826,19.88962097,129.41,129.34,173.75117983]
[1742248089122,19.85962097,129.4,129.34,173.75117983]
[1742248089496,39.88962097,129.41,129.34,173.75117983]
[1742248090133,19.85962097,129.4,129.34,173.75117983]
[1742248090290,19.85962097,129.4,129.34,153.89155886]
[1742248090495,19.85962097,129.4,129.35,27.0583]
[1742248092732,19.85962097,129.39,129.34,142.97321]
[1742248092909,20.00178254,129.37,129.31,7.7333]
[1742248093114,20.00178254,129.37,129.31,27.59292097]
[1742248093426,0.14216157,129.37,129.31,27.59292097]
[1742248095535,20.00178254,129.37,129.31,27.59292097]
[1742248096638,27.73168254,129.37,129.31,27.59292097]
[1742248096867,20.00178254,129.37,129.31,27.59292097]
[1742248097942,20.00178254,129.37,129.31,27.65592097]
[1742248098122,20.00178254,129.37,129.31,7.7963]
[1742248098330,27.73168254,129.37,129.31,7.7963]
[1742248098633,7.87206157,129.37,129.31,7.7963]
[1742248098825,27.73168254,129.37,129.31,7.7963]
[1742248099710,20.00178254,129.37,129.31,7.7963]
[1742248100661,0.14216157,129.37,129.31,27.65592097]
[1742248100947,19.85962097,129.39,129.32,38.50926983]
[1742248101342,19.85962097,129.4,129.34,18.64964886]
[1742248101541,19.88962097,129.41,129.35,7.7309]
[1742248101731,0.03,129.41,129.36,18.933972]
[1742248101936,0.03,129.41,129.37,6.285]
[1742248102833,0.03,129.41,129.38,26.37874886]
[1742248103043,0.03,129.41,129.38,7.7291]
[1742248104448,0.03,129.41,129.38,45.70164886]
[1742248105638,0.03,129.41,129.38,26.37874886]
[1742248106160,0.03,129.41,129.38,7.7291]
[1742248107155,0.03,129.41,129.4,47.72968254]
[1742248107334,0.03,129.44,129.42,18.64964886]
[1742248107535,0.03,129.44,129.42,38.50926983]
[1742248107736,0.03,129.44,129.42,18.64964886]
[1742248108638,0.03,129.44,129.43,6.285]
[1742248109232,0.03,129.44,129.43,14.0111]
[1742248109552,8.4717,129.51,129.43,33.3265]
[1742248109740,8.4717,129.51,129.44,18.64964886]
[1742248109741,19.85962097,129.49,129.44,18.64964886]
[1742248110152,19.85962097,129.5,129.44,173.75117983]
[1742248110452,19.85962097,129.5,129.44,153.89155886]
[1742248111229,19.85962097,129.48,129.44,7.7255]
[1742248112051,8.00582314,129.51,129.39,141.27301]
[1742248112052,20.14394411,129.47,129.39,141.27301]
[1742248112250,19.85962097,129.44,129.39,6.0311]
[1742248112550,19.85962097,129.41,129.35,27.53782097]
[1742248112749,20.00178254,129.42,129.35,27.53782097]
[1742248113142,20.00178254,129.42,129.36,7.7303]
[1742248114757,20.00178254,129.42,129.36,27.58992097]
[1742248114758,0.14216157,129.42,129.36,27.58992097]
[1742248114950,20.00178254,129.42,129.36,27.58992097]
[1742248115453,19.85962097,129.41,129.35,6.0311]
[1742248115755,26.69962097,129.4,129.34,7.7312]
[1742248115947,26.69962097,129.4,129.34,27.59082097]
[1742248115948,6.84,129.4,129.34,27.59082097]
[1742248117549,6.84,129.4,129.34,46.91972097]
[1742248118037,6.84,129.4,129.35,19.85962097]
[1742248118435,6.84,129.4,129.34,46.91972097]
[1742248121059,6.84,129.4,129.35,19.85962097]
[1742248123159,6.84,129.4,129.36,7.7303]
[1742248124366,7.16432314,129.41,129.36,7.7303]
[1742248127465,0.14216157,129.41,129.36,46.91582097]
[1742248127767,6.88,129.42,129.36,46.91582097]
[1742248128061,25.73962097,129.42,129.36,46.91582097]
[1742248128367,25.73962097,129.42,129.36,27.0562]
[1742248130253,27.58642097,129.42,129.36,27.0562]
[1742248130569,26.71962097,129.42,129.36,46.91582097]
[1742248131451,26.21962097,129.42,129.36,46.91582097]
[1742248131869,0.14216157,129.41,129.36,7.7303]
[1742248132447,20.00178254,129.41,129.36,7.7303]